{"text_format":"3","workbook":"xlsx","n_sheets":4,"sheets":["البدء","المصروفات","الدخل","الملخص"],"not_rendered":{"charts":1,"defined_names":2},"read":"whole","date_system":"1900"}

{"sheet":"البدء","index":0,"n_rows":8,"n_cols":2,"rows_kept":8}
[null,"حول هذا القالب"]
[null,"استخدم مصنف ميزانية الحدث هذا لتعقب المصروفات المتكبدة والدخل المكتسب من خلال الحدث."]
[null,"املأ اسم الحدث وأدخل التفاصيل في الجداول في ورقة عمل المصروفات وورقة عمل الدخل."]
[null,"يتم حساب إجمالي المصروفات وإجمالي الدخل تلقائيًا."]
[null,"يتم تحديث ملخص الأرباح والخسائر والمخطط البياني تلقائيًا في ورقة العمل الملخص."]
[null,"ملاحظة: "]
[null,"تم توفير إرشادات إضافية في العمود A في كل ورقة عمل. تم إخفاء هذا النص عن قصد. لإزالة النص، حدد العمود A، ثم حدد \"حذف\". لإظهار النص، حدد العمود A، ثم قم بتغيير لون الخط."]
[null,"للتعرف على المزيد حول الجداول، اضغط على SHIFT ثم F10 داخل جدول، وحدد خيار \"جدول\"، ثم حدد \"النص البديل\"."]

{"sheet":"المصروفات","index":1,"n_rows":33,"n_cols":8,"rows_kept":33,"merged":[[0,5,0,7],[1,1,1,7],[2,6,2,7]]}
["أدخل المصروفات المُقدرة والفعلية لكل فئة في الجداول ذات الصلة في ورقة العمل هذه. يتم حساب إجمالي المصروفات تلقائيًا. توجد تعليمات مفيدة حول كيفية استخدام ورقة العمل هذه في الخلايا الموجودة في هذا العمود. السهم لأسفل لبدء الاستخدام."]
["أدخل اسم الحدث في الخلية على اليمين لتخصيص عنوان هذا وأوراق العمل الأخرى.","ميزانية الحدث لـ \nاسم الحدث"]
["توجد تسمية المصاريف في الخلية G3.",{"$nulls":5}," المصروفات"]
["توجد التسمية المُقدرة في الخلية G4 والتسمية الفعلية في الخلية H4.",{"$nulls":5},"المقدرة","الفعلية"]
["يوجد إجمالي تسمية المصاريف في الخلية على اليسار. يتم حساب إجمالي المصروفات المُقدرة تلقائيًا في الخلية G5. يتم تحديث إجمالي المصروفات الفعلية وشريط البيانات الذي يصور إجمالي المصاريف الفعلية تلقائيًا في الخلية H5. الإرشادات التالية في الخلية A7.","إجمالي المصروفات",{"$nulls":4},{"$f":"SUM(C12,C20,C26,C33,G12,G20,G25)","v":{"v":1145,"d":"ر.س.‏ 1,145.00"}},{"$f":"SUM(D12,D20,D26,D33,H12,H20,H25)","v":{"v":395,"d":"ر.س.‏ 395.00"}}]
[]
["أدخل مصاريف الموقع في جدول يبدأ من الخلية على اليسار ومصروفات المشروبات الطازجة في جدول يبدأ في الخلية F7. توجد الإرشادات التالية في الخلية A14.","الموقع","المقدرة","الفعلية",null,"المشروبات الطازجة","المقدرة","الفعلية"]
[null,"رسوم القاعة والغرفة",{"v":500,"d":"ر.س.‏ 500.00"},{"v":250,"d":"ر.س.‏ 250.00"},null,"الطعام"]
[null,"طاقم عمل الموقع",{"v":400,"d":"ر.س.‏ 400.00"},{"v":50,"d":"ر.س.‏ 50.00"},null,"المشروبات"]
[null,"المعدات",{"$nulls":3},"المفارش"]
[null,"الطاولات والكراسي",{"$nulls":3},"فريق العمل والإكراميات"]
[null,"الإجمالي",{"$f":"SUBTOTAL(109,مصاريف_الموقع[المقدرة])","v":{"v":900,"d":"ر.س.‏ 900.00"}},{"$f":"SUBTOTAL(109,مصاريف_الموقع[الفعلية])","v":{"v":300,"d":"ر.س.‏ 300.00"}},null,"الإجمالي",{"$f":"SUBTOTAL(109,مصاريف_المشروبات_الطازجة[المقدرة])","v":{"v":0,"d":"ر.س.‏ 0.00"}},{"$f":"SUBTOTAL(109,مصاريف_المشروبات_الطازجة[الفعلية])","v":{"v":0,"d":"ر.س.‏ 0.00"}}]
[]
["أدخل مصاريف الديكورات في جدول يبدأ من الخلية على اليسار ومصاريف البرنامج في جدول يبدأ في الخلية F14. توجد الإرشادات التالية في الخلية A22.","الديكورات","المقدرة","الفعلية",null,"البرنامج","المقدرة","الفعلية"]
[null,"الزهور",{"v":200,"d":"ر.س.‏ 200.00"},{"v":50,"d":"ر.س.‏ 50.00"},null,"المؤدون"]
[null,"الشموع",{"$nulls":3},"المتحدثون"]
[null,"الإضاءة",{"$nulls":3},"السفر"]
[null,"البالونات",{"$nulls":3},"الفندق"]
[null,"اللوازم من الورق",{"$nulls":3},"غير ذلك"]
[null,"الإجمالي",{"$f":"SUBTOTAL(109,مصاريف_الديكورات[المقدرة])","v":{"v":200,"d":"ر.س.‏ 200.00"}},{"$f":"SUBTOTAL(109,مصاريف_الديكورات[الفعلية])","v":{"v":50,"d":"ر.س.‏ 50.00"}},null,"الإجمالي",{"$f":"SUBTOTAL(109,مصاريف_البرنامج[المقدرة])","v":{"v":0,"d":"ر.س.‏ 0.00"}},{"$f":"SUBTOTAL(109,مصاريف_البرنامج[الفعلية])","v":{"v":0,"d":"ر.س.‏ 0.00"}}]
[]
["أدخل مصاريف الدعاية في جدول يبدأ من الخلية على اليمين ومن مصاريف الجوائز في جدول يبدأ من الخلية F22. توجد الإرشادات التالية في الخلية A28.","الدعاية","المقدرة","الفعلية",null,"الجوائز","المقدرة","الفعلية"]
[null,"عمل الرسومات البيانية",{"v":45,"d":"ر.س.‏ 45.00"},{"v":45,"d":"ر.س.‏ 45.00"},null,"الشرائط/اللوحات التذكارية/الجوائز"]
[null,"النسخ الضوئي/الطباعة",{"$nulls":3},"الهدايا"]
[null,"رسوم الإرسال بالبريد",{"$nulls":3},"الإجمالي",{"$f":"SUBTOTAL(109,مصاريف_الجوائز[المقدرة])","v":{"v":0,"d":"ر.س.‏ 0.00"}},{"$f":"SUBTOTAL(109,مصاريف_الجوائز[الفعلية])","v":{"v":0,"d":"ر.س.‏ 0.00"}}]
[null,"الإجمالي",{"$f":"SUBTOTAL(109,مصاريف_الدعاية[المقدرة])","v":{"v":45,"d":"ر.س.‏ 45.00"}},{"$f":"SUBTOTAL(109,مصاريف_الدعاية[الفعلية])","v":{"v":45,"d":"ر.س.‏ 45.00"}}]
[]
["أدخل المصاريف المتنوعة في جدول يبدأ من الخلية على اليسار.","المتنوعة","المقدرة","الفعلية"]
[null,"الهاتف"]
[null,"وسائل النقل"]
[null,"اللوازم من الأدوات المكتبية"]
[null,"خدمات الفاكس"]
[null,"الإجمالي",{"$f":"SUBTOTAL(109,المصاريف_المتنوعة[المقدرة])","v":{"v":0,"d":"ر.س.‏ 0.00"}},{"$f":"SUBTOTAL(109,المصاريف_المتنوعة[الفعلية])","v":{"v":0,"d":"ر.س.‏ 0.00"}}]

{"sheet":"الدخل","index":2,"n_rows":30,"n_cols":7,"rows_kept":30,"merged":[[1,1,1,6],[2,5,2,6]]}
["أدخل المدخولات المُقدرة والفعلية من كل فئة في الجداول ذات الصلة في ورقة العمل هذه. يتم حساب إجمالي الدخل تلقائيًا. توجد تعليمات مفيدة حول كيفية استخدام ورقة العمل هذه في الخلايا الموجودة في هذا العمود. السهم لأسفل لبدء الاستخدام."]
["يتم تحديث اسم الحدث تلقائيًا في الخلية على اليسار.",{"$f":"المصروفات!B2","v":"ميزانية الحدث لـ \nاسم الحدث"}]
["توجد تسمية الدخل في الخلية F3.",{"$nulls":4}," الدخل"]
["توجد التسمية المُقدرة في الخلية F4 والتسمية الفعلية في الخلية G4.",{"$nulls":4},"المقدرة","الفعلية"]
["توجد تسمية إجمالي الدخل في الخلية على اليسار. يتم حساب إجمالي الدخل المقدر تلقائيًا في الخلية F5. يتم تحديث إجمالي الدخل الفعلي وشريط البيانات الذي يصور \"إجمالي الدخل الفعلي\" تلقائياً في الخلية G5.","إجمالي الدخل",{"$nulls":3},{"$f":"SUM(عمليات_الدخول[[#Totals],[الإجمالي المُقدر]],الإعلانات_في_البرنامج[[#Totals],[الإجمالي المُقدر]],العارضين_أو_الموردّين[[#Totals],[الإجمالي المُقدر]],بيع_العناصر[[#Totals],[الإجمالي المُقدر]])","v":{"v":1936,"d":"ر.س.‏ 1,936.00"}},{"$f":"SUM(عمليات_الدخول[[#Totals],[الإجمالي الفعلي]],الإعلانات_في_البرنامج[[#Totals],[الإجمالي الفعلي]],العارضين_أو_الموردّين[[#Totals],[الإجمالي الفعلي]],بيع_العناصر[[#Totals],[الإجمالي الفعلي]])","v":{"v":1831,"d":"ر.س.‏ 1,831.00"}}]
["توجد تسميات عمليات الدخول في الخلية على اليسار.","عمليات الدخول"]
["أدخل العدد المُقدر والفعلي لعمليات الدخول مع أسعار التذاكر في جدول يبدأ من الخلية على اليسار. يتم حساب الدخل المُقدر والفعلي من عمليات الدخول تلقائيًا. توجد الإرشادات التالية في الخلية A12.","المقدرة","الفعلية","النوع","السعر","الإجمالي المُقدر","الإجمالي الفعلي"]
[null,300,278,"البالغون @",{"v":5,"d":"ر.س.‏ 5.00"},{"$f":"B8*E8","v":{"v":1500,"d":"ر.س.‏ 1,500.00"}},{"$f":"C8*E8","v":{"v":1390,"d":"ر.س.‏ 1,390.00"}}]
[null,197,195,"الأطفال @",{"v":2,"d":"ر.س.‏ 2.00"},{"$f":"B9*E9","v":{"v":394,"d":"ر.س.‏ 394.00"}},{"$f":"C9*E9","v":{"v":390,"d":"ر.س.‏ 390.00"}}]
[null,42,51,"غير ذلك @",{"v":1,"d":"ر.س.‏ 1.00"},{"v":42,"d":"ر.س.‏ 42.00"},{"v":51,"d":"ر.س.‏ 51.00"}]
[null," ",{"$nulls":3},{"$f":"SUBTOTAL(109,عمليات_الدخول[الإجمالي المُقدر])","v":{"v":1936,"d":"ر.س.‏ 1,936.00"}},{"$f":"SUBTOTAL(109,عمليات_الدخول[الإجمالي الفعلي])","v":{"v":1831,"d":"ر.س.‏ 1,831.00"}}]
["توجد الإعلانات في تسمية البرنامج في الخلية على اليسار.","الإعلانات في البرنامج"]
["أدخل العدد المقدَّر والعدد الفعلي للإعلانات في البرنامج وأسعار الإعلانات في جدول يبدأ من الخلية على اليسار. يتم حساب الدخل المُقدر والفعلي من الإعلانات تلقائيًا. توجد الإرشادات التالية في الخلية A18.","المقدرة","الفعلية","النوع","السعر","الإجمالي المُقدر","الإجمالي الفعلي"]
[{"$nulls":3},"الأغلفة @",null,{"$f":"B14*E14","v":{"v":0,"d":"ر.س.‏ 0.00"}},{"$f":"C14*E14","v":{"v":0,"d":"ر.س.‏ 0.00"}}]
[{"$nulls":3},"نصف صفحات @",null,{"$f":"B15*E15","v":{"v":0,"d":"ر.س.‏ 0.00"}},{"$f":"C15*E15","v":{"v":0,"d":"ر.س.‏ 0.00"}}]
[{"$nulls":3},"ربع صفحات @",null,{"v":0,"d":"ر.س.‏ 0.00"},{"v":0,"d":"ر.س.‏ 0.00"}]
[null," ",{"$nulls":3},{"$f":"SUBTOTAL(109,الإعلانات_في_البرنامج[الإجمالي المُقدر])","v":{"v":0,"d":"ر.س.‏ 0.00"}},{"$f":"SUBTOTAL(109,الإعلانات_في_البرنامج[الإجمالي الفعلي])","v":{"v":0,"d":"ر.س.‏ 0.00"}}]
["توجد تسمية العارضين أو الموردّين في الخلية على اليسار.","العارضين/الموردّين"]
["أدخل العدد المُقدر والفعلي للعارضين والموردّين وأسعار الأكشاك في جدول يبدأ من الخلية على اليسار. يتم حساب الدخل المُقدر والفعلي تلقائيًا. توجد الإرشادات التالية في الخلية A24.","المقدرة","الفعلية","النوع","السعر","الإجمالي المُقدر","الإجمالي الفعلي"]
[{"$nulls":3},"الأكشاك الكبيرة @",null,{"$f":"B20*E20","v":{"v":0,"d":"ر.س.‏ 0.00"}},{"$f":"C20*E20","v":{"v":0,"d":"ر.س.‏ 0.00"}}]
[{"$nulls":3},"الأكشاك المتوسطة @",null,{"$f":"B21*E21","v":{"v":0,"d":"ر.س.‏ 0.00"}},{"$f":"C21*E21","v":{"v":0,"d":"ر.س.‏ 0.00"}}]
[{"$nulls":3},"الأكشاك الصغيرة @",null,{"v":0,"d":"ر.س.‏ 0.00"},{"v":0,"d":"ر.س.‏ 0.00"}]
[null," ",{"$nulls":3},{"$f":"SUBTOTAL(109,العارضين_أو_الموردّين[الإجمالي المُقدر])","v":{"v":0,"d":"ر.س.‏ 0.00"}},{"$f":"SUBTOTAL(109,العارضين_أو_الموردّين[الإجمالي الفعلي])","v":{"v":0,"d":"ر.س.‏ 0.00"}}]
["توجد تسمية بيع العناصر في الخلية على اليسار.","بيع العناصر"]
["أدخل العدد المُقدر والفعلي للسلع المُباعة وأسعار العناصر في جدول يبدأ من الخلية على اليسار. يتم حساب الدخل المُقدر والفعلي تلقائيًا.","المقدرة","الفعلية","النوع","السعر","الإجمالي المُقدر","الإجمالي الفعلي"]
[{"$nulls":3},"العناصر @",null,{"$f":"B26*E26","v":{"v":0,"d":"ر.س.‏ 0.00"}},{"$f":"C26*E26","v":{"v":0,"d":"ر.س.‏ 0.00"}}]
[{"$nulls":3},"العناصر @",null,{"$f":"B27*E27","v":{"v":0,"d":"ر.س.‏ 0.00"}},{"$f":"C27*E27","v":{"v":0,"d":"ر.س.‏ 0.00"}}]
[{"$nulls":3},"العناصر @",null,{"v":0,"d":"ر.س.‏ 0.00"},{"v":0,"d":"ر.س.‏ 0.00"}]
[{"$nulls":3},"العناصر @",null,{"v":0,"d":"ر.س.‏ 0.00"},{"v":0,"d":"ر.س.‏ 0.00"}]
[null," ",{"$nulls":3},{"$f":"SUBTOTAL(109,بيع_العناصر[الإجمالي المُقدر])","v":{"v":0,"d":"ر.س.‏ 0.00"}},{"$f":"SUBTOTAL(109,بيع_العناصر[الإجمالي الفعلي])","v":{"v":0,"d":"ر.س.‏ 0.00"}}]

{"sheet":"الملخص","index":3,"n_rows":9,"n_cols":4,"rows_kept":9,"merged":[[1,1,1,3],[2,2,2,3],[8,1,8,4],[9,1,9,3]]}
["يتم تحديث ملخص الأرباح والخسائر والمخطط البياني الذي يعرض إجمالي الدخل والمصاريف تلقائيًا في ورقة العمل هذه. توجد تعليمات مفيدة حول كيفية استخدام ورقة العمل هذه في الخلايا الموجودة في هذا العمود. السهم لأسفل لبدء الاستخدام."]
["يتم تحديث اسم الحدث تلقائيًا في الخلية على اليسار.",{"$f":"المصروفات!B2","v":"ميزانية الحدث لـ \nاسم الحدث"}]
["توجد تسمية ملخص الأرباح والخسائر في الخلية C3. توجد الإرشادات التالية في الخلية A5.",null,"ملخص الأرباح والخسائر"]
[]
["يتم تحديث جدول الإجمالي الذي يبدأ من الخلية على اليسار تلقائيًا. توجد الإرشادات التالية في الخلية A9.","الإجمالي","المقدرة","الفعلية"]
[null,"إجمالي الدخل",{"$f":"الدخل!F5","v":{"v":1936,"d":"ر.س.‏ 1,936.00"}},{"$f":"الدخل!G5","v":{"v":1831,"d":"ر.س.‏ 1,831.00"}}]
[null,"إجمالي المصاريف",{"$f":"المصروفات!G5","v":{"v":1145,"d":"ر.س.‏ 1,145.00"}},{"$f":"المصروفات!H5","v":{"v":395,"d":"ر.س.‏ 395.00"}}]
[null,"إجمالي الأرباح (أو الخسائر)",{"$f":"C6-C7","v":{"v":791,"d":"ر.س.‏ 791.00"}},{"$f":"D6-D7","v":{"v":1436,"d":"ر.س.‏ 1,436.00"}}]
["يوجد المخطط البياني المُجمع الذي يعرض مقارنة إجمالي الدخل المُقدر والفعلي وإجمالي المصاريف في الخلية على اليسار.","يوجد المخطط البياني العمودي المُجمع الذي يعرض مقارنة إجمالي الدخل المقدر والفعلي وإجمالي المصاريف في هذه الخلية."]